Cogmind - Beta 11 *** ADVENTURER MODE // 2022.04.21 @ 14:30:00 Player: Owlsley Result: Destroyed by Striker with Plasma Lance Performance ------------- Evolutions (8) 4000 Regions Visited (25) 5000 Robots Destroyed (439) 2195 Value Destroyed (23285) 23285 Prototype IDs (57) 1140 Alien Tech Used (4) 800 Bonus (14330) 14330 TOTAL SCORE: 50750 Bonus ------- Triggered High Security 500 High Alert Combat Kills 5553 Follower Combat Kills 2245 Network Hubs Disabled 200 Met Imprinter 300 Met Warlord at Base 500 MAIN.C Attacked Warlord 500 Warlord Defense Kill 2050 Built Enhanced Grunts 300 Met R17 at Cetus 500 Met Warlord at Research 2000 Scanned by Researcher 500 Friendly Fire -818 Cogmind --------- Core Integrity 0/1450 Matter 233/300 Energy 126/1320 System Corruption 7% Temperature Warm (165) Movement Core (2100) Ox41 Location -2/Testing Parts ------- > --- POWER (3) -------- Light Neutrino Core Micro Antimatter Reactor > --- PROPULSION (6) --- (None) > --- UTILITY (11) ----- Huge Storage Unit Advanced Energy Well Experimental Energy Well Experimental Optical Array Advanced Terrain Scan Processor Experimental Targeting Computer Experimental Armor Integrity Analyzer Ghost Barrier Advanced Corruption Screen > --- WEAPON (3) ------- Potential Cannon > --- INVENTORY (25) --- Wheel High-density Centrium Wheel High-density Centrium Wheel Advanced Heat Sink Small Storage Unit Experimental Matter Compressor (318) Advanced Sensor Array Makeshift Terrain Scanner Improved Thermal Shield Long-range Tractor Beam Phase Gun Improved Potential Cannon Hypervelocity Multirail CR-A16's Behemoth Slayer Peak State ------------ > --- POWER ------------ Light Particle Reactor Micro Antimatter Reactor Compact Particle Reactor > --- PROPULSION ------- Myomer Exoskeleton Myomer Exoskeleton > --- UTILITY ---------- Advanced Heat Sink Advanced Heat Sink Huge Storage Unit Advanced Energy Well Experimental Matter Compressor Experimental Optical Array Advanced Terrain Scan Processor Experimental Targeting Computer Experimental Armor Integrity Analyzer Improved Energy Mantle Ghost Barrier > --- WEAPON ----------- Enhanced Nova Cannon Improved Potential Cannon > --- INVENTORY -------- Micro Antimatter Reactor Vortex Chain Reactor Biometal Medium Treads Armored Heavy Treads Experimental Biometal Heavy Treads High-density Centrium Wheel High-density Centrium Wheel Advanced Heat Sink Advanced Sensor Array Makeshift Terrain Scanner Improved Thermal Shield Improved Remote Force Field Long-range Tractor Beam Matter Neutralizer Improved Matter Neutralizer Improved Matter Neutralizer Enhanced Nova Cannon Cooled Nova Cannon Hypervelocity Multirail Micro-nuke Launcher Ragnarok Missile Launcher CR-A16's Behemoth Slayer [Rating: 233] Favorites ----------- Power Particle Reactor Engine Light Ion Engine Power Core Enhanced Nuclear Core Reactor Particle Reactor Propulsion Light Treads Treads Light Treads Leg Myomer Exoskeleton Wheel High-density Centrium Wheel Hover Unit Cooled Gravmag System Utility Huge Storage Unit Device Improved Heat Sink Storage Huge Storage Unit Processor Improved Signal Interpreter Hackware Hacking Suite Protection Medium Reflective Plating Artifact Phase Armor Weapon Gatling Laser Energy Gun Gatling Laser Energy Cannon Improved Matter Neutralizer Ballistic Gun Railgun Ballistic Cannon Light Cannon Launcher Ragnarok Missile Launcher Special Weapon Mining Laser Impact Weapon Powered Hammer Piercing Weapon CR-A16's Behemoth Slayer Build | -11 -10 -10 -10 -9 -8 -7 -7 -7 -7 -6 -5 -5 -5 -5 -5 -5 -4 -4 -4 -4 -3 -3 -3 -2 -2 ------- Run | Scr Mat Min Exi Min Mat Fac Was Fac Low Zio Pro Fac Ext Cet Arc Hub Fac Upp Upp War Pro Res Qua Res Tes Slots Evolved 16 | . . . . . 4 2 . . . . . 4 . . . . 2 . . . . 2 . 2 . Power 2 | . . . . . . . . . . . . . . . . . 1 . . . . . . 1 . Propulsion 4 | . . . . . 2 . . . . . . . . . . . . . . . . 2 . . . Utility 9 | . . . . . 2 2 . . . . . 3 . . . . 1 . . . . . . 1 . Weapon 1 | . . . . . . . . . . . . 1 . . . . . . . . . . . . . Parts Attached 423 | 3 12 . . . 22 4 5 45 2 11 6 23 6 7 . 16 68 13 25 16 13 20 14 15 77 Power 35 | . 1 . . . 3 . . 3 . 1 . 1 . 1 . 2 4 1 3 3 . 1 1 1 9 Engine 8 | . 1 . . . 3 . . 3 . . . 1 . . . . . . . . . . . . . Core 11 | . . . . . . . . . . 1 . . . . . 1 3 1 3 1 . . . . 1 Reactor 16 | . . . . . . . . . . . . . . 1 . 1 1 . . 2 . 1 1 1 8 Propulsion 66 | 2 6 . . . 7 1 2 10 . 1 1 8 . 2 . . 5 1 8 2 . 1 3 1 5 Treads 51 | 2 3 . . . 7 1 2 9 . 1 1 4 . 2 . . 4 1 4 2 . 1 3 1 3 Leg 3 | . 1 . . . . . . . . . . . . . . . . . . . . . . . 2 Wheel 11 | . 2 . . . . . . 1 . . . 3 . . . . 1 . 4 . . . . . . Hover 1 | . . . . . . . . . . . . 1 . . . . . . . . . . . . . Flight . | . . . . . . . . . . . . . . . . . . . . . . . . . . Utility 166 | 1 4 . . . 6 2 . 16 2 . 4 9 5 2 . 13 39 8 8 7 3 5 5 7 20 Device 102 | 1 1 . . . 1 1 . 8 1 . 3 5 3 1 . 7 33 5 5 3 2 2 4 4 12 Storage 25 | . 3 . . . . . . 4 . . . 1 1 . . 3 2 1 1 1 . 1 . 1 6 Processor 16 | . . . . . 1 1 . 1 . . . 2 . . . 1 2 2 1 2 . 1 . 1 1 Hackware 3 | . . . . . . . . 1 . . . 1 . . . . . . . . . . . 1 . Protection 19 | . . . . . 4 . . 2 1 . 1 . 1 1 . 2 2 . 1 1 1 1 . . 1 Artifact 1 | . . . . . . . . . . . . . . . . . . . . . . . 1 . . Weapon 156 | . 1 . . . 6 1 3 16 . 9 1 5 1 2 . 1 20 3 6 4 10 13 5 6 43 Energy Gun 47 | . . . . . . . . 7 . 5 1 1 . 1 . . 10 2 2 2 . 1 1 4 10 Energy Cannon 47 | . . . . . 1 1 1 3 . 1 . 3 1 1 . 1 9 1 1 . 4 3 . . 16 Ballistic Gun 13 | . . . . . . . . 1 . . . . . . . . . . 1 . 2 3 3 . 3 Ballistic Cannon 12 | . 1 . . . 4 . . 4 . 1 . . . . . . . . . . . . . . 2 Launcher 30 | . . . . . 1 . . . . 2 . . . . . . 1 . 1 2 3 6 1 1 12 Special Weapon 1 | . . . . . . . . 1 . . . . . . . . . . . . . . . . . Impact Weapon 2 | . . . . . . . 2 . . . . . . . . . . . . . . . . . . Slashing Weapon . | . . . . . . . . . . . . . . . . . . . . . . . . . . Piercing Weapon 4 | . . . . . . . . . . . . 1 . . . . . . 1 . 1 . . 1 . Special Melee Weapon . | . . . . . . . . . . . . . . . . . . . . . . . . . . Unidentified Prototypes 45 | . . . . . 1 . . 1 . 2 . 2 . 3 . 5 7 . . 5 . 1 3 1 14 Corrupted Parts 2 | . . . . . . . . . . . . . . . . 2 . . . . . . . . . System Corruption 11 | . . . . . . . . . . . . . . . . 11 . . . . . . . . . Parts Lost 92 | . 2 . . . 1 . 7 2 . . 4 6 2 . . 2 14 3 14 1 1 3 3 2 25 Power 17 | . 1 . . . 1 . 1 . . . . 1 . . . . 3 . 3 . . . . 1 6 Propulsion 18 | . 1 . . . . . 3 1 . . 1 3 . . . . 2 1 1 . . . 2 . 3 Utility 34 | . . . . . . . 3 . . . 2 1 1 . . 2 7 . 7 . 1 . 1 . 9 Weapon 23 | . . . . . . . . 1 . . 1 1 1 . . . 2 2 3 1 . 3 . 1 7 Highest Loss Streak 10 | . 2 . . . 1 . 6 1 . . 3 5 2 . . 2 8 1 9 1 1 2 2 2 10 To Critical Strikes 7 | . . . . . . . . . . . . . . . . . 2 . . 1 . . 2 . 2 Average Slot Usage (%) 88 | . 99 100 100 100 99 97 59 89 94 91 85 74 87 87 88 87 87 86 79 70 85 89 86 79 80 Engine 4 | . 14 14 14 14 8 7 5 6 7 1 . 4 5 . . . . . . . . . . . . Core 1 | . . . . . . . . . . 6 7 . . . . . 5 10 5 . . . . . . Reactor 2 | . . . . . . . . . . . . . . 4 5 4 4 . . . 5 8 9 10 11 Treads 19 | . 15 28 28 28 35 30 17 27 30 30 30 13 11 11 11 11 9 10 9 7 15 19 17 13 9 Wheel 1 | . 12 . . . . . . . . . . . . . . . . . 1 7 . . . . . Device 14 | . 14 14 14 14 9 14 8 20 17 15 11 14 20 17 17 20 20 22 14 8 6 7 10 12 12 Storage 7 | . 14 14 14 14 9 7 4 6 7 7 7 5 5 5 5 5 6 7 9 7 5 5 7 4 8 Processor 12 | . . . . . 8 12 4 5 7 7 7 9 17 17 17 17 15 14 16 23 26 28 23 17 17 Hackware 2 | . . . . . . . . 1 . . . 3 5 5 5 5 5 5 5 5 5 . . 3 4 Protection 3 | . . . . . 8 7 4 5 7 7 4 . 1 4 5 1 2 . 1 5 5 4 . . 1 Energy Gun 7 | . 14 14 14 14 . . . 10 15 14 15 10 3 . . . 6 9 6 3 5 3 4 7 3 Energy Cannon 4 | . . . . . . . 4 1 . . . 5 12 17 17 16 8 5 3 . 7 4 3 . 6 Ballistic Cannon 3 | . 9 14 14 14 17 14 2 . . . . . . . . . . . . . . . . . . Naked Turns 47 | . . . . . . . 26 21 . . . . . . . . . . . . . . . . . Heaviest Build 212 | 15 51 49 49 49 68 72 72 112 84 84 81 124 133 139 139 144 164 129 128 136 144 152 186 195 212 Greatest Support 215 | 40 40 40 40 40 80 88 88 102 102 102 107 140 140 160 160 160 160 145 145 125 125 195 200 205 215 Greatest Overweight (x) 5 | . 2 1 1 1 . . 1 1 . . . 2 . . . . 2 . 5 2 1 . . . 1 Average Overweight (x) . | . . 1 1 1 . . . . . . . . . . . . . . 1 1 . . . . . Largest Inventory Capacity 25 | 8 20 20 20 20 20 20 20 25 20 20 20 25 25 25 25 25 25 25 25 25 25 25 25 25 25 Average Capacity 21 | 8 15 20 20 20 20 20 13 15 20 20 20 22 25 25 25 25 25 25 25 25 25 25 25 25 25 Most Carried 25 | 7 20 20 20 20 20 20 20 20 20 20 20 25 25 25 25 25 25 25 25 25 25 25 25 25 25 Average Carried 20 | 6 12 19 19 19 19 19 13 13 20 19 19 21 24 24 24 24 24 21 19 24 24 24 24 24 23 Final Capacity 25 | 8 20 20 20 20 20 20 5 20 20 20 20 25 25 25 25 25 25 25 25 25 25 25 25 25 25 Final Carried 25 | 6 20 20 20 20 20 20 5 20 20 20 19 25 24 25 25 25 23 25 25 24 25 25 24 25 15 Class Distribution -------------------- 41% | Mutant 18% | Scavenger-Gunner 13% | Scavenger-Skirmisher 11% | Scavenger-Mutant 4% | Hacker-Mutant 3% | Hacker-Gunner 3% | Hacker-Skirmisher Dominant Class ---------------- Mutant | -10/Materials Mutant | -10/Mines Mutant | -10/Exiles Mutant | -9/Mines Mutant | -8/Materials Mutant | -7/Factory Mutant | -7/Waste Mutant | -7/Factory Mutant | -7/Lower Caves Mutant | -6/Zion Mutant | -5/Proximity Caves Scavenger-Gunner | -5/Factory Scavenger-Skirmisher | -5/Extension Scavenger-Gunner | -5/Cetus Scavenger-Gunner | -5/Archives Scavenger-Skirmisher | -5/Hub_04(d) Scavenger-Skirmisher | -4/Factory Scavenger-Gunner | -4/Upper Caves Scavenger-Gunner | -4/Upper Caves Scavenger-Mutant | -4/Warlord Scavenger-Gunner | -3/Proximity Caves Scavenger-Gunner | -3/Research Scavenger-Skirmisher | -3/Quarantine Hacker-Skirmisher | -2/Research Hacker-Gunner | -2/Testing Resources | -11 -10 -10 -10 -9 -8 -7 -7 -7 -7 -6 -5 -5 -5 -5 -5 -5 -4 -4 -4 -4 -3 -3 -3 -2 -2 ----------- Run | Scr Mat Min Exi Min Mat Fac Was Fac Low Zio Pro Fac Ext Cet Arc Hub Fac Upp Upp War Pro Res Qua Res Tes Matter Collected 9669 | 200 541 . . 84 922 . . 1260 53 75 205 208 98 70 . 150 675 156 325 652 640 437 351 1088 1479 Remotely 952 | . . . . . . . . . . . . . . . . . . . . . . . . 266 686 Salvage Created 18939 | 28 467 35 . 174 1061 . . 1700 70 . 484 960 937 298 . 802 2219 361 720 501 1015 1631 1035 284 4157 Parts 736 | 3 30 2 . 9 79 . . 84 2 . 21 46 24 14 . 32 93 23 27 11 33 37 40 15 111 Haulers Intercepted 10 | . 2 . . . 5 . . 2 . . . . . . . . 1 . . . . . . . . Recyclers Shooed 11 | . . . . . 1 . . 3 . . . 2 1 . . 1 2 . . . . 1 . . . Parts Field Recycled . | . . . . . . . . . . . . . . . . . . . . . . . . . . Retrieved Matter . | . . . . . . . . . . . . . . . . . . . . . . . . . . Parts Self-Destructed 142 | . . . . . . . . . 2 . 20 . . . . . . 15 17 67 21 . . . . Prevented 6 | . . . . . . . . . . . . . . . . . . 4 . 2 . . . . . Kills | -11 -10 -10 -10 -9 -8 -7 -7 -7 -7 -6 -5 -5 -5 -5 -5 -5 -4 -4 -4 -4 -3 -3 -3 -2 -2 ------- Run | Scr Mat Min Exi Min Mat Fac Was Fac Low Zio Pro Fac Ext Cet Arc Hub Fac Upp Upp War Pro Res Qua Res Tes Combat Hostiles Destroyed 389 | . 13 3 . 4 34 . . 32 1 . 15 23 14 4 . 10 24 6 15 14 18 42 21 13 83 Guns 118 | . 8 2 . 2 . . . 23 1 . 15 19 1 . . . 9 3 8 1 3 6 7 1 9 Cannons 132 | . 5 1 . 2 34 . . 8 . . . 3 9 2 . 9 12 3 1 . 3 9 4 . 27 AOE 116 | . . . . . . . . . . . . . . . . . . . 4 13 11 27 8 12 41 Classes Destroyed 23 | 1 4 . . 1 3 . . 3 . . . 1 1 . . 2 2 . 1 2 . . . . 2 Worker 7 | . . . . . . . . . . . . 1 . . . . 1 . . . . . . . 5 Builder 4 | . . . . . 1 . . 1 . . . . . . . 1 . . . . . . 1 . . Tunneler 5 | 1 1 . . . . . . 2 . . . . 1 . . . . . . . . . . . . Hauler 10 | . 2 . . . 5 . . 2 . . . . . . . . 1 . . . . . . . . Recycler 11 | . . . . . . . . 4 . . . . . . . 1 5 . . . . . . . 1 Mechanic 4 | . . . . . . . . . . . . . . . . . . . 1 1 . . 1 . 1 Operator 10 | . . . . . 2 . . 3 . . . 1 . . . . . . . . . 1 1 . 2 Watcher 20 | . 2 . . . 3 . . 2 . . . 3 . 1 . 2 5 . . . . 1 1 . . Swarmer 72 | . 6 3 . . 10 . . 6 . . 9 13 2 . . . . . 3 . . 4 3 10 3 Saboteur 3 | . . . . . . . . . . . . . . . . . 1 . . . . . . . 2 Grunt 163 | . 7 . . 3 12 . . 18 . . 6 8 7 . . 3 2 . 6 8 9 30 7 . 37 Brawler 11 | . . . . . . . . 1 . . . . . . . . . . 1 3 2 . . . 4 Duelist 13 | . . . . . 2 . . . . . . . . . . . . . 1 . 1 . 1 . 8 Protector 5 | . . . . . . . . . . . . . . . . . . . . 1 2 . . . 2 Researcher 1 | . . . . . . . . . . . . . . . . . . . . . . . . . 1 Sentry 30 | . . . . 1 10 . . 3 1 . . . 3 . . 3 . . 2 . 2 2 1 1 1 Specialist 6 | . . . . . . . . . . . . . . . . 2 1 . . . . . . . 3 Hunter 33 | . . . . . . . . . . . . . . . . 1 10 4 1 . . 6 4 . 7 Programmer 37 | . . . . . . . . 4 . . . 2 . . . 1 9 2 . . 2 . 5 1 11 Behemoth 4 | . . . . . . . . . . . . . 2 . . . . . 1 . 1 . . . . Cetus Guard 4 | . . . . . . . . . . . . . . 4 . . . . . . . . . . . Investigator 1 | . . . . . . . . . . . . . . . . . . . . . . . . . 1 Striker 5 | . . . . . . . . . . . . . . . . . 1 . . 1 . . . 1 2 Executioner 2 | . . . . . . . . . . . . . . . . . . . . 1 . . . . 1 Alpha 7 2 | . . . . . . . . . . . . . . . . . . . . . . . . . 2 Butcher 1 | . . . . . . . . . . . . . 1 . . . . . . . . . . . . Best Kill Streak 17 | 1 3 3 . 3 8 . . 7 1 . 7 8 3 3 . 5 10 2 7 12 7 17 13 12 13 Combat Bots Only 17 | . 3 3 . 3 8 . . 6 1 . 7 8 3 3 . 4 7 2 6 12 7 17 10 12 12 Max Kills in Single Turn 7 | 1 2 1 . 2 3 . . 1 1 . 1 2 2 1 . 2 2 1 2 7 5 4 3 5 5 Gunslinging . | . . . . . . . . . . . . . . . . . . . . . . . . . . Exploded 7 | . . . . . . . . . . . . . . . . . . . 2 7 5 4 3 5 5 Melee . | . . . . . . . . . . . . . . . . . . . . . . . . . . Uniques/NPCs Destroyed 1 | . . . . . . . . . . . . . . 1 . . . . . . . . . . . A7 (-5/Cetus) Combat | -11 -10 -10 -10 -9 -8 -7 -7 -7 -7 -6 -5 -5 -5 -5 -5 -5 -4 -4 -4 -4 -3 -3 -3 -2 -2 -------- Run | Scr Mat Min Exi Min Mat Fac Was Fac Low Zio Pro Fac Ext Cet Arc Hub Fac Upp Upp War Pro Res Qua Res Tes Damage Taken 27172 | . 425 40 . 123 520 44 977 1552 . . 1304 807 578 325 35 1112 3300 620 1971 187 920 1228 1676 1667 7761 Core 3766 | . 62 . . 40 73 . 188 277 . . 160 130 64 14 14 84 311 73 245 8 84 127 406 440 966 Absorbed by Shields 5287 | . . . . . 199 16 62 223 . . 225 . 158 . . . 407 . 128 163 167 . . 215 3324 Redirected to Core 818 | . . . . . . . . . . . . . . . . . . . . . . . 362 386 70 Regen/Repaired (Parts) 1000 | . . . . . . . . 493 . . . . . 63 . 40 404 . . . . . . . . Core Remaining (%) 58 | 100 . . . 59 86 . . . . . 10 . . . . 69 . . . . 37 . 50 . . Volleys Fired 804 | 2 51 4 . 8 81 . 7 106 1 1 31 46 36 13 3 24 85 17 27 13 17 54 44 18 115 Largest 3 | 2 2 2 . 2 2 . 2 2 2 1 2 3 3 3 3 3 3 3 3 2 3 3 3 3 3 Hottest 353 | 70 85 85 . 85 79 . 119 160 160 80 160 229 268 268 268 278 314 280 281 240 306 306 282 269 353 Shots Fired 1817 | 4 102 8 . 16 162 . 14 188 3 1 56 123 98 39 9 69 224 51 70 18 39 116 119 40 248 Gun 788 | 4 77 4 . 8 . . . 109 3 . 56 88 15 . . . 95 24 57 11 20 50 74 34 59 Cannon 953 | . 25 4 . 8 162 . 14 76 . 1 . 35 83 39 9 69 129 27 10 . 14 46 40 . 162 Launcher 73 | . . . . . . . . . . . . . . . . . . . 3 7 5 20 5 6 27 Special 3 | . . . . . . . . 3 . . . . . . . . . . . . . . . . . Kinetic 368 | 2 51 4 . 8 162 . 7 45 . . . . . . . . . . 2 . 8 19 32 8 20 Thermal 1318 | 2 51 4 . 8 . . 7 122 3 1 56 123 98 39 9 69 209 42 65 11 26 77 77 18 201 Explosive 73 | . . . . . . . . . . . . . . . . . . . 3 7 5 20 5 6 27 Electromagnetic 58 | . . . . . . . . 21 . . . . . . . . 15 9 . . . . 5 8 . Robot Hit Streak 68 | 1 23 6 . 13 31 . . 48 27 . 36 19 32 20 10 23 35 19 60 18 30 27 57 21 68 Robot Miss Streak 7 | 1 3 1 . 1 7 . . 4 . . 4 2 4 2 . 1 2 2 2 . 1 1 1 1 1 Penetration Max 1 | . . . . . . . . . . . . . . . . . . . . . . . 1 . 1 Secondary Targets 7 | . . . . . . . . . . . 2 . . . . . . . 3 . 1 . 1 . . Max Gunslinging Chain 1 | . . . . . . . . . . . 1 . . . . . . . 1 . 1 . 1 . . Shots Hit Robots 1412 | 2 83 5 . 12 130 . . 152 3 . 52 97 76 32 9 44 164 35 65 17 29 86 93 35 191 Core Hits 972 | 1 24 3 . 7 123 . . 133 5 . 46 67 31 17 2 23 63 10 25 30 36 75 42 26 183 Critical Kills 19 | . . . . . . . . . . . . . 2 . . 1 4 1 . . . 1 3 . 7 Critical Parts Destroyed 18 | . . . . . . . . . . . . . . . . . 3 3 2 . 1 1 6 2 . Critical Strikes 61 | . 8 1 . 1 6 . . . . . . 2 2 . . 1 8 4 5 . 2 3 9 2 7 Burn 14 | . 4 1 . 1 . . . . . . . 2 . . . . 1 . 3 . 1 1 . . . Meltdown 13 | . . . . . . . . . . . . . 2 . . 1 2 . . . . . 2 . 6 Destroy 24 | . . . . . . . . . . . . . . . . . 5 4 2 . 1 2 7 2 1 Blast 10 | . 4 . . . 6 . . . . . . . . . . . . . . . . . . . . Melee Attacks 15 | . . . . . . . 7 . . . . 1 . . . . . . 2 . 1 . . 4 . Impact 7 | . . . . . . . 7 . . . . . . . . . . . . . . . . . . Slashing . | . . . . . . . . . . . . . . . . . . . . . . . . . . Piercing 8 | . . . . . . . . . . . . 1 . . . . . . 2 . 1 . . 4 . Sneak Attacks . | . . . . . . . . . . . . . . . . . . . . . . . . . . Combat Hostiles . | . . . . . . . . . . . . . . . . . . . . . . . . . . Follow-up Attacks . | . . . . . . . . . . . . . . . . . . . . . . . . . . Damage Inflicted 76837 | 25 1156 75 . 191 2883 . . 3991 90 . 1220 2409 2588 1023 279 2161 6189 1422 3599 4405 3817 9262 4820 3412 21820 Guns 17749 | 25 797 40 . 89 . . . 2608 90 . 1220 1922 406 . . . 2471 614 1829 248 482 1045 1424 662 1777 Cannons 23542 | . 359 35 . 102 2668 . . 1305 . . . 487 2170 1023 279 1692 3561 808 329 . 333 1266 1224 . 5901 Explosions 35382 | . . . . . 215 . . 51 . . . . . . . 467 136 . 1410 4157 3002 6951 2172 2750 14071 Melee 31 | . . . . . . . . . . . . . . . . . . . 31 . . . . . . Ramming 109 | . . . . . . . . 3 . . . . 12 . . 2 21 . . . . . . . 71 Kinetic 5505 | . 632 35 . 102 2668 . . 782 . . . . . . . . . . 39 . 145 295 307 58 442 Thermal 36369 | 25 524 40 . 89 215 . . 2692 90 . 1220 2409 2576 1023 279 1692 5768 1199 2119 248 670 2016 2341 447 8687 Explosive 32931 | . . . . . . . . . . . . . . . . . . . 1410 4157 3002 6951 2041 2750 12620 Electromagnetic 1892 | . . . . . . . . 514 . . . . . . . 467 400 223 . . . . 131 157 . Impact . | . . . . . . . . . . . . . . . . . . . . . . . . . . Slashing . | . . . . . . . . . . . . . . . . . . . . . . . . . . Piercing 31 | . . . . . . . . . . . . . . . . . . . 31 . . . . . . Highest Corruption 14 | . 1 1 1 1 . . 10 11 11 11 . 1 2 2 2 14 7 6 7 7 . . 2 . 7 Average Corruption 4 | . 1 1 1 1 . . 9 10 11 11 . 1 1 2 2 2 4 5 6 7 . . 1 . 2 Corruption Purged 10 | . . . . . . . . . . . . . . . . . 10 . . . . . . . . Corruption Blocked 24 | . . . . . . . . . . . . . . . . . . . . . . . . 19 5 Effects 283 | . 12 4 5 4 . . 5 113 14 1 . 1 18 6 1 10 20 18 29 1 . . 3 . 18 Message Errors 68 | . 7 1 . . . . 1 20 6 . . . 7 3 . 2 8 5 4 . . . 1 . 3 Matter Fused 72 | . 2 1 2 1 . . 2 34 1 1 . . 5 . . 3 2 6 6 . . . . . 6 Heat Flow Errors 39 | . 2 . . 2 . . 1 16 3 . . . 1 2 . 3 . 1 5 1 . . . . 2 Energy Discharges 32 | . . . 2 1 . . 1 14 . . . . 1 1 1 . 3 . 3 . . . 2 . 3 Parts Rejected 6 | . . . . . . . . 2 . . . . . . . . 1 . 1 . . . . . 2 Data Loss (minor) 19 | . 1 1 1 . . . . 6 1 . . . . . . . 3 2 3 . . . . . 1 Data Loss (major) 16 | . . 1 . . . . . 7 2 . . 1 1 . . 1 . 1 2 . . . . . . Misfires 16 | . . . . . . . . 7 1 . . . 2 . . 1 . 2 3 . . . . . . Alerts 2 | . . . . . . . . 1 . . . . . . . . . . 1 . . . . . . Misdirections 2 | . . . . . . . . 2 . . . . . . . . . . . . . . . . . Weapon Failures 11 | . . . . . . . . 4 . . . . 1 . . . 3 1 1 . . . . . 1 Overload Shots 2 | . . . . . . . . . . . . . . . . . . . . 1 . . . . 1 Overflow Damage 2754 | . 14 . . . . . . 36 . . . 27 5 . . 49 112 17 237 271 149 417 200 142 1078 Projectiles 471 | . 14 . . . . . . 9 . . . 27 5 . . 49 109 17 . . . 38 11 . 192 Explosions 2261 | . . . . . . . . 27 . . . . . . . . 3 . 237 271 149 379 189 142 864 Melee 22 | . . . . . . . . . . . . . . . . . . . . . . . . . 22 Knockbacks 77 | . 2 . . . 55 . . 13 . . . . . . . . . . . . . . . . 7 Impact 2 | . . . . . . . . . . . . . . . . . . . . . . . . . 2 Kinetic 73 | . 2 . . . 53 . . 13 . . . . . . . . . . . . . . . . 5 Secondary 2 | . . . . . 2 . . . . . . . . . . . . . . . . . . . . Self-Inflicted Damage 813 | . . . . . . . . 35 . . . . . . . 83 . . . . 63 . 162 . 470 Shots 14 | . . . . . . . . 1 . . . . . . . 1 . . . . 1 . 2 . 9 Rammed 10 | . . . . . . . . 6 . . . . 1 . . 1 2 . . . . . . . . Targets Rammed 13 | . . . . . . . . 7 . . . . 1 . . 1 2 . . . . . . . 2 Kicked 2 | . . . . . . . . . . . . . . . . . . . . . . . . . 2 Crushed 1 | . . . . . . . . 1 . . . . . . . . . . . . . . . . . Highest Temperature 567 | 18 413 . . 200 127 . 179 325 167 48 518 288 193 192 93 238 567 528 350 214 375 349 7 192 506 Average Temperature 102 | 10 99 . . 97 25 . 94 55 67 28 194 75 51 111 45 61 143 144 123 54 166 112 3 72 146 Received Heat Transfer 4254 | . 240 . . 123 236 . . 602 . . 361 243 164 18 9 403 61 . 488 66 208 325 96 9 602 Effects 40 | . 1 . . . . . . . . . 7 . . . . . 15 . 1 . 2 1 . . 13 Shutdowns 15 | . . . . . . . . . . . 3 . . . . . 4 . . . . 1 . . 7 Energy Bleed 5 | . 1 . . . . . . . . . . . . . . . . . . . . . . . 4 Interference 10 | . . . . . . . . . . . 3 . . . . . 5 . . . 2 . . . . Matter Decay 2 | . . . . . . . . . . . . . . . . . 2 . . . . . . . . Short Circuit 3 | . . . . . . . . . . . . . . . . . 2 . 1 . . . . . . Damage (minor) 1 | . . . . . . . . . . . . . . . . . 1 . . . . . . . . Damage (major) 3 | . . . . . . . . . . . . . . . . . 1 . . . . . . . 2 Damage (core) 1 | . . . . . . . . . . . 1 . . . . . . . . . . . . . . Siege Activations . | . . . . . . . . . . . . . . . . . . . . . . . . . . Robots Corrupted 2 | . . . . . . . . . . . . . . . . . 2 . . . . . . . . Combat Hostiles 2 | . . . . . . . . . . . . . . . . . 2 . . . . . . . . Parts Fried 2 | . . . . . . . . . . . . . . . . . 2 . . . . . . . . Impact Corruptions 1 | . . . . . . . . . . . . . . . . . . . . . . . . . 1 Robots Melted 20 | . . . . . . . . 1 . . . 1 4 2 . 1 2 . 1 . . . 2 . 6 Combat Hostiles 19 | . . . . . . . . 1 . . . 1 4 2 . 1 1 . 1 . . . 2 . 6 Parts Melted 103 | . 4 1 . 1 . . . 13 . . 11 10 13 2 . 2 14 2 5 . . 3 3 1 18 Heat Transferred 46436 | 74 1850 185 . 333 150 . . 5712 200 . 2700 4984 3840 1520 411 1692 5517 1110 2442 296 777 2118 2283 592 7650 Parts Sabotaged 7 | . . . . . . . . . . . . . . . . 2 . . . . . . . . 5 Parts Stolen . | . . . . . . . . . . . . . . . . . . . . . . . . . . Parts Stripped . | . . . . . . . . . . . . . . . . . . . . . . . . . . Power Chain Reactions 3 | . . . . . . . . 1 . . . . . . . . 1 . . . . . 1 . . Missiles Intercepted . | . . . . . . . . . . . . . . . . . . . . . . . . . . Alert | -11 -10 -10 -10 -9 -8 -7 -7 -7 -7 -6 -5 -5 -5 -5 -5 -5 -4 -4 -4 -4 -3 -3 -3 -2 -2 ------- Run | Scr Mat Min Exi Min Mat Fac Was Fac Low Zio Pro Fac Ext Cet Arc Hub Fac Upp Upp War Pro Res Qua Res Tes Peak Influence 2324 | 5 212 78 . 120 471 35 16 305 . . . 342 488 539 285 660 319 . . . . 1025 731 489 2324 Initial 501 | . 2 8 . . . 35 . 3 . . . 66 . 237 181 83 278 . . . . . 501 267 234 Average 245 | 2 71 37 . 68 259 31 1 104 . . . 173 125 423 258 132 195 . . . . 454 362 307 967 Maximum Alert Level 5 | . 1 . . . 2 . . 1 . . . 1 2 2 1 2 1 . . . . 3 3 2 5 Low Security (%) 57 | 100 88 100 . 100 29 100 100 87 . . . 45 79 . 20 77 52 . . . . 22 23 25 6 Level 1 29 | . 11 . . . 61 . . 12 . . . 54 14 42 79 16 47 . . . . 29 28 61 22 Level 2 7 | . . . . . 8 . . . . . . . 6 57 . 5 . . . . . 20 48 13 8 Level 3 2 | . . . . . . . . . . . . . . . . . . . . . . 26 . . 20 Level 4 1 | . . . . . . . . . . . . . . . . . . . . . . . . . 19 Level 5 . | . . . . . . . . . . . . . . . . . . . . . . . . . 7 High Security 1 | . . . . . . . . . . . . . . . . . . . . . . . . . 15 Max Security . | . . . . . . . . . . . . . . . . . . . . . . . . . . Squads Dispatched 78 | . 1 . . . 2 . . 10 . . . 6 5 . . 5 7 . 1 . 1 10 7 2 21 Investigation 15 | . 1 . . . . . . 3 . . . 3 2 . . 2 . . . . . 3 . 1 . Extermination 13 | . . . . . . . . 4 . . . 1 . . . . 3 . . . . . 2 . 3 Reinforcement 33 | . . . . . 2 . . 3 . . . 2 3 . . 2 4 . . . . 7 4 1 5 Assault 17 | . . . . . . . . . . . . . . . . 1 . . 1 . 1 . 1 . 13 Garrison . | . . . . . . . . . . . . . . . . . . . . . . . . . . Intercept . | . . . . . . . . . . . . . . . . . . . . . . . . . . Searches Triggered . | . . . . . . . . . . . . . . . . . . . . . . . . . . Construction Impeded 1 | . . . . . . . . . . . . . 1 . . . . . . . . . . . . Haulers Reinforced 4 | . . . . . . . . 1 . . . . . . . . . . . . . 3 . . . Active Scanning Responses . | . . . . . . . . . . . . . . . . . . . . . . . . . . Cargo Convoy Interrupts 1 | . . . . . . . . . . . . . . . . . 1 . . . . . . . . Stealth | -11 -10 -10 -10 -9 -8 -7 -7 -7 -7 -6 -5 -5 -5 -5 -5 -5 -4 -4 -4 -4 -3 -3 -3 -2 -2 --------- Run | Scr Mat Min Exi Min Mat Fac Was Fac Low Zio Pro Fac Ext Cet Arc Hub Fac Upp Upp War Pro Res Qua Res Tes Distress Signals 35 | . 1 . . . 6 . . 2 . . . 1 2 2 . . 2 . . 1 . 6 2 6 4 Communications Jammed 10 | . . . . . . . . . . . . . . . . . 10 . . . . . . . . Distress Signals 9 | . . . . . . . . . . . . . . . . . 9 . . . . . . . . Times Spotted 630 | . 20 3 . 4 60 . 7 61 . . 16 36 36 10 4 25 43 7 19 31 20 47 36 18 127 Peak Tracking Total 18 | . 3 3 . 3 7 . 6 7 . . 7 6 7 5 2 6 9 2 8 12 7 8 8 15 18 Tactical Retreats 26 | . 1 . . . 2 . 1 7 . . 1 2 2 . . 1 2 . . 1 . 1 1 . 4 Traps | -11 -10 -10 -10 -9 -8 -7 -7 -7 -7 -6 -5 -5 -5 -5 -5 -5 -4 -4 -4 -4 -3 -3 -3 -2 -2 ------- Run | Scr Mat Min Exi Min Mat Fac Was Fac Low Zio Pro Fac Ext Cet Arc Hub Fac Upp Upp War Pro Res Qua Res Tes Traps Triggered 17 | . 2 . . . . 2 . 5 . . . . 3 . . 2 . . . . . 1 . . 2 Indirectly . | . . . . . . . . . . . . . . . . . . . . . . . . . . Trap Hack Attempts . | . . . . . . . . . . . . . . . . . . . . . . . . . . Triggered . | . . . . . . . . . . . . . . . . . . . . . . . . . . Disarmed 6 | . . . . . . . . 6 . . . . . . . . . . . . . . . . . Reprogrammed 4 | . 4 . . . . . . . . . . . . . . . . . . . . . . . . Reused . | . . . . . . . . . . . . . . . . . . . . . . . . . . Traps Extracted . | . . . . . . . . . . . . . . . . . . . . . . . . . . Installed . | . . . . . . . . . . . . . . . . . . . . . . . . . . Triggered 7 | . . . . . . . . . . . . . . . . . . . . 7 . . . . . Most Traps Carried 1 | . . . . . . . . . . . 1 1 1 1 . . . . . . . . . . . Machines | -11 -10 -10 -10 -9 -8 -7 -7 -7 -7 -6 -5 -5 -5 -5 -5 -5 -4 -4 -4 -4 -3 -3 -3 -2 -2 ---------- Run | Scr Mat Min Exi Min Mat Fac Was Fac Low Zio Pro Fac Ext Cet Arc Hub Fac Upp Upp War Pro Res Qua Res Tes Machines Disabled 52 | . . . . . 7 . . 1 . . . 2 3 . 1 6 . . 1 2 1 4 8 . 16 Max in Single Turn 7 | . . . . . 7 . . 1 . . . 1 1 . . 3 . . 1 2 1 1 2 . 2 Garrison Access 5 | . . . . . . . . 1 . . . 1 . . . . 1 . . . . . . 1 1 Network Hub 1 | . . . . . . . . . . . . . . . . 1 . . . . . . . . . Machines Sabotaged . | . . . . . . . . . . . . . . . . . . . . . . . . . . Garrisons Compromised . | . . . . . . . . . . . . . . . . . . . . . . . . . . Overloaded Fab Kills . | . . . . . . . . . . . . . . . . . . . . . . . . . . Hacking | -11 -10 -10 -10 -9 -8 -7 -7 -7 -7 -6 -5 -5 -5 -5 -5 -5 -4 -4 -4 -4 -3 -3 -3 -2 -2 --------- Run | Scr Mat Min Exi Min Mat Fac Was Fac Low Zio Pro Fac Ext Cet Arc Hub Fac Upp Upp War Pro Res Qua Res Tes Machines Accessed 75 | . 9 . . . 8 . . 10 . . . 7 20 . 1 4 6 . 1 1 . 2 1 2 3 Terminals 54 | . 7 . . . 6 . . 5 . . . 3 20 . . 4 3 . . . . 1 1 2 2 Fabricators 4 | . . . . . . . . 2 . . . 1 . . . . . . . . . 1 . . . Repair Stations 2 | . . . . . . . . 2 . . . . . . . . . . . . . . . . . Recycling Units 6 | . 2 . . . 1 . . . . . . 1 . . . . 2 . . . . . . . . Scanalyzers 2 | . . . . . 1 . . . . . . . . . . . . . . . . . . . 1 Garrison Access 4 | . . . . . . . . 1 . . . 2 . . . . 1 . . . . . . . . Total Hacks 218 | . 27 . . . 26 . . 36 . . . 15 40 . 1 13 24 . 1 4 . 5 4 11 11 Successful 126 | . 12 . . . 15 . . 28 . . . 11 23 . 1 9 8 . 1 4 . 3 3 3 5 Failed 92 | . 15 . . . 11 . . 8 . . . 4 17 . . 4 16 . . . . 2 1 8 6 Catastrophic 13 | . 2 . . . 2 . . 1 . . . 1 2 . . . 3 . . . . . . 1 1 Database Lockouts . | . . . . . . . . . . . . . . . . . . . . . . . . . . Manual 91 | . 17 . . . 11 . . 11 . . . 6 12 1 . 7 14 . . . . . . 7 5 Terminals 161 | . 23 . . . 18 . . 18 . . . 9 40 . . 13 12 . . . . 3 4 11 10 Fabricators 8 | . . . . . . . . 4 . . . 2 . . . . . . . . . 2 . . . Repair Stations 12 | . . . . . . . . 12 . . . . . . . . . . . . . . . . . Recycling Units 18 | . 4 . . . 2 . . . . . . 2 . . . . 10 . . . . . . . . Scanalyzers 7 | . . . . . 6 . . . . . . . . . . . . . . . . . . . 1 Garrison Access 6 | . . . . . . . . 2 . . . 2 . . . . 2 . . . . . . . . Terminal Hacks 77 | . 11 . . . 2 . . 12 . . . 4 21 . 1 9 4 . 1 4 . 1 3 1 3 Record 4 | . . . . . . . . . . . . . 1 . 1 2 . . . . . . . . . Part Schematic 3 | . 3 . . . . . . . . . . . . . . . . . . . . . . . . Robot Analysis 9 | . 1 . . . . . . 4 . . . . 1 . . . 3 . . . . . . . . Prototype ID Bank 7 | . 2 . . . . . . . . . . . 1 . . . . . . 4 . . . . . Open Door 15 | . . . . . . . . . . . . 1 13 . . . . . 1 . . . . . . Level Access Points 1 | . . . . . . . . . . . . . . . . 1 . . . . . . . . . Branch Access Points 4 | . . . . . 1 . . 1 . . . 1 . . . . . . . . . 1 . . . Machine Index 1 | . . . . . . . . . . . . . 1 . . . . . . . . . . . . Terminal Index 2 | . . . . . . . . . . . . . . . . 1 . . . . . . . 1 . Fabricator Index 1 | . . . . . . . . 1 . . . . . . . . . . . . . . . . . Alert Level 4 | . . . . . . . . . . . . 1 . . . . 1 . . . . . 1 . 1 Unreport Threat 15 | . 2 . . . 1 . . 3 . . . 1 1 . . 3 . . . . . . 2 . 2 Locate Traps 3 | . 1 . . . . . . 1 . . . . 1 . . . . . . . . . . . . Disarm Traps 2 | . . . . . . . . 2 . . . . . . . . . . . . . . . . . Reprogram Traps 1 | . 1 . . . . . . . . . . . . . . . . . . . . . . . . Recall Investigation 1 | . . . . . . . . . . . . . . . . 1 . . . . . . . . . Recall Reinforcements 2 | . . . . . . . . . . . . . 1 . . 1 . . . . . . . . . Hauler Manifests 1 | . 1 . . . . . . . . . . . . . . . . . . . . . . . . Zone Layout 1 | . . . . . . . . . . . . . 1 . . . . . . . . . . . . Fabricator Hacks 8 | . . . . . . . . 4 . . . 2 . . . . . . . . . 2 . . . Load Schematic 4 | . . . . . . . . 2 . . . 1 . . . . . . . . . 1 . . . Build 4 | . . . . . . . . 2 . . . 1 . . . . . . . . . 1 . . . Repair Station Hacks 10 | . . . . . . . . 10 . . . . . . . . . . . . . . . . . Scan Component 5 | . . . . . . . . 5 . . . . . . . . . . . . . . . . . Repair 5 | . . . . . . . . 5 . . . . . . . . . . . . . . . . . Recycling Unit Hacks 5 | . 1 . . . 1 . . . . . . 1 . . . . 2 . . . . . . . . Retrieve Components 5 | . 1 . . . 1 . . . . . . 1 . . . . 2 . . . . . . . . Scanalyzer 6 | . . . . . 6 . . . . . . . . . . . . . . . . . . . . Insert Component 3 | . . . . . 3 . . . . . . . . . . . . . . . . . . . . Analyze 3 | . . . . . 3 . . . . . . . . . . . . . . . . . . . . Garrison Access Hacks 3 | . . . . . . . . 1 . . . 1 . . . . 1 . . . . . . . . Seal Access 3 | . . . . . . . . 1 . . . 1 . . . . 1 . . . . . . . . Unauthorized Hacks 17 | . . . . . 6 . . 1 . . . 3 2 . . . 1 . . . . . . 2 2 Terminals 13 | . . . . . 5 . . 1 . . . 2 2 . . . . . . . . . . 2 1 Track 2 | . . . . . 2 . . . . . . . . . . . . . . . . . . . . Assimilate 1 | . . . . . . . . . . . . 1 . . . . . . . . . . . . . Botnet 5 | . . . . . 1 . . 1 . . . . 1 . . . . . . . . . . 1 1 Disrupt 2 | . . . . . 2 . . . . . . . . . . . . . . . . . . . . Operators 2 | . . . . . . . . . . . . . 1 . . . . . . . . . . 1 . Search 1 | . . . . . . . . . . . . 1 . . . . . . . . . . . . . Fabricators . | . . . . . . . . . . . . . . . . . . . . . . . . . . Repair Stations . | . . . . . . . . . . . . . . . . . . . . . . . . . . Recycling Units 2 | . . . . . 1 . . . . . . . . . . . 1 . . . . . . . . Mask 2 | . . . . . 1 . . . . . . . . . . . 1 . . . . . . . . Scanalyzers 1 | . . . . . . . . . . . . . . . . . . . . . . . . . 1 Researchers 1 | . . . . . . . . . . . . . . . . . . . . . . . . . 1 Garrison Access 1 | . . . . . . . . . . . . 1 . . . . . . . . . . . . . Reprogram 1 | . . . . . . . . . . . . 1 . . . . . . . . . . . . . Data Cores Recovered 1 | . . . . . . . . 1 . . . . . . . . . . . . . . . . . Used 1 | . . . . . . . . 1 . . . . . . . . . . . . . . . . . Hacking Detections 48 | . 8 . . . 7 . . 8 . . . 4 8 . . 4 4 . . . . 1 1 1 2 Full Trace Events 7 | . . . . . . . . 2 . . . 1 1 . . 1 . . . . . 1 . 1 . Feedback Events . | . . . . . . . . . . . . . . . . . . . . . . . . . . Feedback Blocked . | . . . . . . . . . . . . . . . . . . . . . . . . . . Robot Schematics Acquired 4 | . . . . . . . . . . 4 . . . . . . . . . . . . . . . Robots Built . | . . . . . . . . . . . . . . . . . . . . . . . . . . Authchips . | . . . . . . . . . . . . . . . . . . . . . . . . . . Time 204 | . . . . . . . . . . . . . . . . . . . . . . 204 . . . Total Robot Build Rating . | . . . . . . . . . . . . . . . . . . . . . . . . . . Part Schematics Acquired 23 | . 3 . . . 3 . . . . 14 . . . . . . . . . . . . . . 3 Parts Built 4 | . . . . . . . . 2 . . . 2 . . . . . . . . . . . . . Authchips . | . . . . . . . . . . . . . . . . . . . . . . . . . . Time 193 | . . . . . . . . 76 . . . 117 . . . . . . . . . . . . . Total Part Build Rating 16 | . . . . . . . . 2 . . . 14 . . . . . . . . . . . . . Parts Repaired 5 | . . . . . . . . 5 . . . . . . . . . . . . . . . . . Time 195 | . . . . . . . . 195 . . . . . . . . . . . . . . . . . Parts Recycled . | . . . . . . . . . . . . . . . . . . . . . . . . . . Recycled Matter . | . . . . . . . . . . . . . . . . . . . . . . . . . . Retrieved Matter . | . . . . . . . . . . . . . . . . . . . . . . . . . . Retrieved Components 25 | . 6 . . . 1 . . . . . . 3 . . . . 15 . . . . . . . . Parts Scanalyzed 3 | . . . . . 3 . . . . . . . . . . . . . . . . . . . . Part Schematics Acquired 3 | . . . . . 3 . . . . . . . . . . . . . . . . . . . . Parts Damaged . | . . . . . . . . . . . . . . . . . . . . . . . . . . Bothacking | -11 -10 -10 -10 -9 -8 -7 -7 -7 -7 -6 -5 -5 -5 -5 -5 -5 -4 -4 -4 -4 -3 -3 -3 -2 -2 ------------ Run | Scr Mat Min Exi Min Mat Fac Was Fac Low Zio Pro Fac Ext Cet Arc Hub Fac Upp Upp War Pro Res Qua Res Tes Used RIF Installer . | . . . . . . . . . . . . . . . . . . . . . . . . . . Robots Hacked . | . . . . . . . . . . . . . . . . . . . . . . . . . . Non-combat . | . . . . . . . . . . . . . . . . . . . . . . . . . . Combat . | . . . . . . . . . . . . . . . . . . . . . . . . . . Robot Hacks Applied . | . . . . . . . . . . . . . . . . . . . . . . . . . . Relay Couplers Released 6 | . . . . . . . . . . . . . . . . . . . . . . 3 . 1 2 Machine Destruction 3 | . . . . . . . . . . . . . . . . . . . . . . . . 1 2 Programmers 3 | . . . . . . . . . . . . . . . . . . . . . . 3 . . . Fabnet Peak Effective % . | . . . . . . . . . . . . . . . . . . . . . . . . . . Robots Rewired 14 | . . . . . . . . . . . . . 6 . . . . . 2 4 2 . . . . Allies Hacked 1 | . . . . . . . . . . . . . . . . . . . . . 1 . . . . Hacks Repelled . | . . . . . . . . . . . . . . . . . . . . . . . . . . Allies | -11 -10 -10 -10 -9 -8 -7 -7 -7 -7 -6 -5 -5 -5 -5 -5 -5 -4 -4 -4 -4 -3 -3 -3 -2 -2 -------- Run | Scr Mat Min Exi Min Mat Fac Was Fac Low Zio Pro Fac Ext Cet Arc Hub Fac Upp Upp War Pro Res Qua Res Tes Total Allies 39 | . . . . . . . . . . . . 4 22 5 . . . . 2 4 2 . . . . Largest Group 14 | . . . . . . . . . . . . 4 14 11 7 5 . . 2 5 2 . . . . Highest-Rated Group 532 | . . . . . . . . . . . . 116 532 520 520 473 . . 77 304 84 . . . . Highest-Rated Ally 159 | . . . . . . . . . . . . 29 159 153 96 96 . . 47 68 65 . . . . Total Orders 3 | . . . . . . . . . . . . . . . . . 3 . . . . . . . . EXPLORE 3 | . . . . . . . . . . . . . . . . . 3 . . . . . . . . Ally Attacks 313 | . . . . . . . . . . . . . 142 53 22 43 . . 12 37 4 . . . . Total Damage 10194 | . . . . . . . . . . . . . 3297 1481 964 1644 . . 364 2293 151 . . . . Kills 63 | . . . . . . . . . . . . . 26 13 4 7 . . 1 11 1 . . . . Allies Corrupted 2 | . . . . . . . . . . . . . . . . 1 1 . . . . . . . . Allies Melted 2 | . . . . . . . . . . . . . 1 . . . . . . 1 . . . . . Intel | -11 -10 -10 -10 -9 -8 -7 -7 -7 -7 -6 -5 -5 -5 -5 -5 -5 -4 -4 -4 -4 -3 -3 -3 -2 -2 ------- Run | Scr Mat Min Exi Min Mat Fac Was Fac Low Zio Pro Fac Ext Cet Arc Hub Fac Upp Upp War Pro Res Qua Res Tes Robot Analysis Total 9 | . 1 . . . . . . 4 . . . . 1 . . . 3 . . . . . . . . Derelict Logs Recovered 6 | . . 1 . . . . . . 2 2 . . . . . . . 1 . . . . . . . Drone Launches 4 | . . . . . . . . . . . . . . . . . 4 . . . . . . . . Drone Recoveries . | . . . . . . . . . . . . . . . . . . . . . . . . . . Exploration | -11 -10 -10 -10 -9 -8 -7 -7 -7 -7 -6 -5 -5 -5 -5 -5 -5 -4 -4 -4 -4 -3 -3 -3 -2 -2 ------------- Run | Scr Mat Min Exi Min Mat Fac Was Fac Low Zio Pro Fac Ext Cet Arc Hub Fac Upp Upp War Pro Res Qua Res Tes Turns Passed 25821 | 22 1482 796 394 644 2201 442 148 3101 372 1542 786 1424 1251 365 108 688 2167 499 1125 728 1676 742 863 659 1596 Spaces Moved 12968 | 8 832 325 164 254 1075 266 98 1678 228 948 374 740 666 191 61 356 969 259 545 441 636 337 425 342 750 Core 522 | . . . . . . . 53 469 . . . . . . . . . . . . . . . . . Treads 11142 | 6 339 325 164 254 1075 266 45 1209 228 948 374 701 666 191 61 356 969 259 376 65 636 337 425 342 525 Legs 227 | 2 . . . . . . . . . . . . . . . . . . . . . . . . 225 Wheels 1077 | . 493 . . . . . . . . . . 39 . . . . . . 169 376 . . . . . Hover . | . . . . . . . . . . . . . . . . . . . . . . . . . . Flight . | . . . . . . . . . . . . . . . . . . . . . . . . . . Fastest Speed 50 | 120 90 240 240 240 160 162 50 50 160 160 160 111 160 160 160 160 160 160 130 130 163 162 156 158 100 Average Speed 164 | 150 150 240 240 240 160 162 102 134 160 160 160 157 160 160 160 160 177 160 175 138 246 162 160 158 141 Slowest Speed 320 | 160 320 240 240 240 162 162 243 240 160 160 160 240 160 160 160 160 320 160 240 249 249 162 162 158 244 Overloaded Moves . | . . . . . . . . . . . . . . . . . . . . . . . . . . Propulsion Burnouts . | . . . . . . . . . . . . . . . . . . . . . . . . . . Robots Hopped . | . . . . . . . . . . . . . . . . . . . . . . . . . . Cave-ins Triggered 3 | . . . . . . . 3 . . . . . . . . . . . . . . . . . . Teleports 2 | . . . . . . . . . . . . . . . . . . . . . . . 1 . 1 Exploration Rate (%) 52 | 3 93 63 53 63 92 6 74 36 43 85 58 19 84 56 67 43 23 37 57 63 87 21 45 14 69 Regions Visited 25 Branch Regions 16 Pre-discovered Areas 3 | . . . . . . . . . . 2 . . . . . . . 1 . . . . . . . Known Exits Taken 12 | . . . . . . . . 1 1 1 1 1 1 1 1 1 1 . . . 1 1 . . . Unknown Exits Taken 11 | 1 1 1 1 1 1 . . . . . . . . . . . . 1 1 1 . . 1 1 . Scrap Searched 16 | . . . . 1 . . . . 2 3 2 . . . . . . 2 3 . 3 . . . . Spaces Dug 51 | . . . . . . . 14 7 . . . 1 1 . . . 13 . . 1 3 6 . 3 2 Terrain Destroyed 929 | . . . . . 15 . 14 10 . . . 3 9 2 . 170 47 10 44 49 74 107 51 48 276 Melee 11 | . . . . . . . 7 . . . . 1 . . . . . . . . . . . 3 . Projectile 145 | . . . . . . . 7 8 . . . 2 9 2 . 11 41 10 5 1 9 11 5 . 24 AOE 773 | . . . . . 15 . . 2 . . . . . . . 159 6 . 39 48 65 96 46 45 252 Terrain Rammed . | . . . . . . . . . . . . . . . . . . . . . . . . . . Walls Destroyed . | . . . . . . . . . . . . . . . . . . . . . . . . . . Machines Disabled . | . . . . . . . . . . . . . . . . . . . . . . . . . . Actions | -11 -10 -10 -10 -9 -8 -7 -7 -7 -7 -6 -5 -5 -5 -5 -5 -5 -4 -4 -4 -4 -3 -3 -3 -2 -2 --------- Run | Scr Mat Min Exi Min Mat Fac Was Fac Low Zio Pro Fac Ext Cet Arc Hub Fac Upp Upp War Pro Res Qua Res Tes Total 15805 | 13 956 334 166 276 1397 279 117 2311 233 971 495 886 774 223 65 418 1234 303 666 544 710 433 513 419 1069 Wait 960 | . 40 4 . 3 169 . 1 399 . 2 80 39 23 . . 4 44 5 25 25 13 9 1 25 49 Move 12943 | 7 831 324 163 253 1074 266 96 1677 227 947 373 739 665 190 60 355 968 258 544 440 635 336 424 341 750 Hop . | . . . . . . . . . . . . . . . . . . . . . . . . . . Pick Up 277 | 1 19 1 1 6 21 4 . 49 . 2 2 20 1 3 1 4 27 10 20 7 9 9 15 10 35 Fast Attach 102 | . . . . . 5 2 . 14 2 5 3 11 2 7 . 12 21 . . 4 . . 2 1 11 Attach 158 | 1 2 . . . 5 . 2 16 . . 3 8 2 . . . 23 7 20 9 5 6 7 3 39 Detach 38 | . . . . . 1 . . 2 . 1 . . 1 1 . 1 6 . 5 9 . 1 . . 10 Swap 167 | 2 10 . . . 12 2 3 15 . 6 . 4 2 . . 4 24 6 5 3 8 14 7 11 29 Drop 239 | . 3 1 2 6 29 5 . 26 3 7 3 18 3 9 1 13 33 . 11 9 6 4 13 6 28 Fire 804 | 2 51 4 . 8 81 . 7 106 1 1 31 46 36 13 3 24 85 17 27 13 17 54 44 18 115 Melee 15 | . . . . . . . 7 . . . . 1 . . . . . . 2 . 1 . . 4 . Ram . | . . . . . . . . . . . . . . . . . . . . . . . . . . Kick 2 | . . . . . . . . . . . . . . . . . . . . . . . . . 2 Crush 11 | . . . . . . . . 7 . . . . 1 . . 1 2 . . . . . . . . Escape Stasis 2 | . . . . . . . 1 . . . . . . . . . . . . . . . . . 1 Rewire 86 | . . . . . . . . . . . . . 38 . . . . . 7 25 16 . . . . Trap . | . . . . . . . . . . . . . . . . . . . . . . . . . . Miscellaneous 1 | . . . . . . . . . . . . . . . . . 1 . . . . . . . . Route ------- -11/Scrapyard -10/Materials (discovered 4 exits: [*Mat x3] / [*Min]) -10/Mines (discovered 2 exits: [*Mat] / [*Exi]) -10/Exiles -9/Mines (discovered 2 exits: *Mat x2) -8/Materials (discovered 3 exits: [*Fac x3]) -7/Factory -7/Waste -7/Factory (discovered 5 exits: *Fac x3 / *Low x2) -7/Lower Caves -6/Zion -5/Proximity Caves -5/Factory (discovered 6 exits: Fac x2 / *Upp x2 / *Ext x2) -5/Extension (discovered 2 exits: *Fac / *Cet) -5/Cetus (discovered 2 exits: *Fac / *Arc) -5/Archives -5/Hub_04(d) (discovered 4 exits: *Fac x4) -4/Factory (discovered 2 exits: *Res / *Upp) -4/Upper Caves -4/Upper Caves (discovered 2 exits: *Res / *War) -4/Warlord -3/Proximity Caves -3/Research (discovered 4 exits: *Res / Arm / *Qua x2) -3/Quarantine -2/Research (discovered 2 exits: *Acc / *Tes) -2/Testing History --------- Turn | Location | Event 1 | -11/Scrapyard | Discovered new exit (range 2) 23 | -11/Scrapyard | Entered Materials 293 | -10/Materials | Discovered new exit (range 5) 336 | -10/Materials | Build established: Mutant 509 | -10/Materials | Discovered new exit (range 16) 665 | -10/Materials | Discovered new exit (range 9) 798 | -10/Materials | Discovered new exit (range 6) 1505 | -10/Materials | Entered Mines 1760 | -10/Mines | Learned 2 Materials zone layouts 1817 | -10/Mines | Deemed a non-threat by the Exiles lab entrance 1817 | -10/Mines | Discovered new exit (range 5) 1963 | -10/Mines | Discovered new exit (range 11) 2301 | -10/Mines | Entered Exiles 2359 | -10/Exiles | Met 8R-AWN 2400 | -10/Exiles | Met EX-HEX 2472 | -10/Exiles | Met EX-BIN 2501 | -10/Exiles | Met EX-DEC 2668 | -10/Exiles | Discovered new exit (range 11) 2695 | -10/Exiles | Entered Mines 2711 | -9/Mines | Met a Derelict bent on vengeance 2786 | -9/Mines | Joined a pair of Derelicts in attacking an 0b10 outpost 2922 | -9/Mines | Received a Rocket Launcher from a helpful Derelict 2958 | -9/Mines | Discovered new exit (range 10) 3043 | -9/Mines | Discovered new exit (range 10) 3339 | -9/Mines | Entered Materials 3339 | -8/Materials | Evolved 4 slots: Propulsion x2, Utility x2 3638 | -8/Materials | Destroyed 8 combat bots 4189 | -8/Materials | Build established: Scavenger-Mutant 4618 | -8/Materials | Discovered new exit (range 11) 5049 | -8/Materials | Discovered new exit (range 16) 5082 | -8/Materials | Build established: Mutant 5498 | -8/Materials | Discovered new exit (range 16) 5540 | -8/Materials | Entered Factory 5540 | -7/Factory | Evolved 2 slots: Utility x2 5982 | -7/Factory | Sucked down chute 5982 | -7/Factory | Entered Waste 5992 | -7/Waste | Spotted C-40 Crusher 6023 | -7/Waste | Crushed by falling debris 6027 | -7/Waste | Crushed by falling debris 6039 | -7/Waste | Crushed by falling debris 6040 | -7/Waste | System corruption reached 10% 6054 | -7/Waste | Spotted C-40 Crusher 6054 | -7/Waste | Spotted C-40 Crusher 6058 | -7/Waste | Spotted C-40 Crusher 6065 | -7/Waste | Crushed by Compactor (1 part destroyed, 2 dropped) 6070 | -7/Waste | Crushed by Compactor (1 part destroyed, 2 dropped) 6100 | -7/Waste | Spotted C-40 Crusher 6101 | -7/Waste | Lost 6 parts (3n3u) 6104 | -7/Waste | Crushed by Compactor (1 part destroyed, 1 dropped) 6104 | -7/Waste | Released all parts (3) 6114 | -7/Waste | Spotted C-40 Crusher 6125 | -7/Waste | Discovered new exit (range 11) 6130 | -7/Waste | Entered Factory 6225 | -7/Factory | Discovered new exit (range 14) 6424 | -7/Factory | Discovered new exit (range 9) 6668 | -7/Factory | Core integrity fell below 50% 6704 | -7/Factory | Identified exit to Factory 7336 | -7/Factory | Repaired Med. Treads 7370 | -7/Factory | Repaired Imp. Treads 7397 | -7/Factory | Repaired Lgt. Treads 7431 | -7/Factory | Repaired Imp. Treads 7827 | -7/Factory | Discovered exit to Factory (range 4) 8066 | -7/Factory | Identified exit to Lower Caves 8161 | -7/Factory | Repaired Corrupted Gatling Laser 8364 | -7/Factory | Build established: Hacker-Mutant 8384 | -7/Factory | Fabricated Huge Storage Unit (x1) 8721 | -7/Factory | Fabricated Hcp. Storage Unit (x1) 8841 | -7/Factory | Build established: Mutant 9231 | -7/Factory | Entered Lower Caves 9278 | -7/Lower Caves | Learned Factory machine intel 9507 | -7/Lower Caves | Learned Factory security intel 9588 | -7/Lower Caves | A Derelict revealed a hidden shortcut to a safe place 9601 | -7/Lower Caves | Identified exit to Zion 9603 | -7/Lower Caves | Entered Zion 9666 | -6/Zion | System corruption cleaned by Quarantine Array 9831 | -6/Zion | Found CR-A16's Pointy Stick 9848 | -6/Zion | Discovered new exit (range 12) 10161 | -6/Zion | Learned 12 Factory zone layouts 10286 | -6/Zion | Found Prototype Launcher 10287 | -6/Zion | Identified Rocket Array 10406 | -6/Zion | Learned Factory trap positions 10580 | -6/Zion | Given A8's code to call for help 10640 | -6/Zion | Learned location of Warlord (-4) 11144 | -6/Zion | Identified exit to Proximity Caves 11145 | -6/Zion | Entered Proximity Caves 11641 | -5/Proximity Caves | Core integrity fell below 20% 11684 | -5/Proximity Caves | Discovered new exit (range 13) 11685 | -5/Proximity Caves | Destroyed 7 combat bots 11693 | -5/Proximity Caves | Lost 3 parts (2u1w) 11930 | -5/Proximity Caves | Identified exit to Factory 11931 | -5/Proximity Caves | Entered Factory 11931 | -5/Factory | Evolved 4 slots: Utility x3, Weapon x1 11932 | -5/Factory | Identified exit to Factory 11933 | -5/Factory | Loaded intel: 114 trap records 11935 | -5/Factory | Loaded intel: 290 machine locations 12080 | -5/Factory | Destroyed 8 combat bots 12085 | -5/Factory | Lost 5 parts (1p3n1w) 12241 | -5/Factory | Identified exit to Upper Caves 12241 | -5/Factory | Identified exit to Extension 12495 | -5/Factory | Fabricated Centrium Wheel (x2) 12521 | -5/Factory | Build established: Scavenger-Gunner 13153 | -5/Factory | Build established: Scavenger-Skirmisher 13355 | -5/Factory | Entered Extension 13355 | -5/Extension | Accompanied by 4 allies 13430 | -5/Extension | Rescued a captive Derelict 13573 | -5/Extension | Rescued A7 13727 | -5/Extension | Rescued a captive Derelict 14148 | -5/Extension | Spotted B-75 Beast 14155 | -5/Extension | Destroyed B-75 Beast 14179 | -5/Extension | Spotted B-75 Beast 14206 | -5/Extension | Destroyed B-75 Beast 14270 | -5/Extension | Rescued a captive Derelict 14313 | -5/Extension | Rescued a captive Derelict 14330 | -5/Extension | Rescued a captive Derelict 14331 | -5/Extension | Rescued a captive Derelict 14346 | -5/Extension | Rescued a captive Derelict 14374 | -5/Extension | Rescued a captive Derelict 14375 | -5/Extension | Rescued a captive Derelict 14405 | -5/Extension | Rescued a captive Derelict 14405 | -5/Extension | Rescued a captive Derelict 14416 | -5/Extension | Rescued a captive Derelict 14425 | -5/Extension | Rescued a captive Derelict 14425 | -5/Extension | Rescued a captive Derelict 14439 | -5/Extension | Rescued a captive Derelict 14440 | -5/Extension | Rescued a captive Derelict 14529 | -5/Extension | Rescued a captive Derelict 14574 | -5/Extension | Discovered exit to Factory (range 10) 14576 | -5/Extension | Discovered new exit (range 6) 14601 | -5/Extension | Identified exit to Cetus 14606 | -5/Extension | Entered Cetus 14606 | -5/Cetus | Accompanied by 11 allies (A7) 14611 | -5/Cetus | Acquired a Cetus Manufacturing Module code from A7 14627 | -5/Cetus | Spotted Cetus Guard 14627 | -5/Cetus | Spotted Cetus Guard 14630 | -5/Cetus | Spotted Cetus Guard 14632 | -5/Cetus | Spotted Cetus Guard 14639 | -5/Cetus | Destroyed Cetus Guard 14641 | -5/Cetus | Allies destroyed Cetus Guard 14641 | -5/Cetus | Allies destroyed A7 14643 | -5/Cetus | Extracted ID and sensor layout for unrecognized location from A7's data core 14644 | -5/Cetus | Allies destroyed Cetus Guard 14646 | -5/Cetus | Allies destroyed Cetus Guard 14650 | -5/Cetus | Found Prototype Protection 14650 | -5/Cetus | Identified Med. Regenerative Plating 14706 | -5/Cetus | Started Cetus Manufacturing Module 14725 | -5/Cetus | Discovered new exit (range 16) 14731 | -5/Cetus | Manufactured an Enhanced Grunt 14756 | -5/Cetus | Manufactured an Enhanced Grunt 14756 | -5/Cetus | Spotted Cetus Guard 14757 | -5/Cetus | Spotted Cetus Guard 14762 | -5/Cetus | Spotted Cetus Guard 14764 | -5/Cetus | Destroyed Cetus Guard 14764 | -5/Cetus | Spotted Cetus Guard 14770 | -5/Cetus | Destroyed Cetus Guard 14780 | -5/Cetus | Destroyed Cetus Guard 14781 | -5/Cetus | Manufactured an Enhanced Grunt 14791 | -5/Cetus | Allies destroyed Cetus Guard 14799 | -5/Cetus | Discovered exit to Factory (range 15) 14806 | -5/Cetus | Manufactured an Enhanced Grunt 14812 | -5/Cetus | Met Revision 17 14831 | -5/Cetus | Manufactured an Enhanced Grunt 14940 | -5/Cetus | Build established: Scavenger-Gunner 14970 | -5/Cetus | Identified exit to Archives 14971 | -5/Cetus | Entered Archives 14971 | -5/Archives | Accompanied by 7 allies 15020 | -5/Archives | Discovered new exit (range 15) 15053 | -5/Archives | Unable to access archive contents 15077 | -5/Archives | Identified exit to Hub_04(d) 15079 | -5/Archives | Entered Hub_04(d) 15079 | -5/Hub_04(d) | Accompanied by 5 allies 15399 | -5/Hub_04(d) | Disrupted transfer network 15448 | -5/Hub_04(d) | Build established: Scavenger-Skirmisher 15549 | -5/Hub_04(d) | Discovered exit to Factory (range 7) 15629 | -5/Hub_04(d) | Found Prototype Device 15629 | -5/Hub_04(d) | Identified Exp. Thermal Shield 15679 | -5/Hub_04(d) | First assault squad dispatched 15703 | -5/Hub_04(d) | Found Corrupted Exp. Thermal Shield 15754 | -5/Hub_04(d) | Network Hub disabled 15767 | -5/Hub_04(d) | System corruption reached 10% 15767 | -5/Hub_04(d) | Entered Factory 15767 | -4/Factory | Evolved 2 slots: Power x1, Utility x1 15995 | -4/Factory | Discovered new exit (range 39) 15999 | -4/Factory | Discovered new exit (range 48) 16208 | -4/Factory | Identified exit to Upper Caves 16221 | -4/Factory | Identified exit to Research 16612 | -4/Factory | Cargo convoy interrupted 16612 | -4/Factory | Spotted Striker 16648 | -4/Factory | Destroyed Striker 16707 | -4/Factory | Destroyed 7 combat bots 16709 | -4/Factory | Lost 8 parts (1p2n3u2w) 16748 | -4/Factory | Found Prototype Launcher 16749 | -4/Factory | Identified Ragnarok Missile Launcher 16758 | -4/Factory | Found Ragnarok Missile Launcher 17934 | -4/Factory | Entered Upper Caves 17963 | -4/Upper Caves | Lost 5 parts (2p3u) 18106 | -4/Upper Caves | Learned location of Testing (-2) 18276 | -4/Upper Caves | Build established: Scavenger-Gunner 18417 | -4/Upper Caves | Attracted the attention of an 0b10 checkpoint 18417 | -4/Upper Caves | Discovered new exit (range 8) 18433 | -4/Upper Caves | Entered another Upper Caves area 18433 | -4/Upper Caves | Discovered exit to Research (range 17) 18485 | -4/Upper Caves | Attracted the attention of an 0b10 checkpoint 18602 | -4/Upper Caves | Attracted the attention of an 0b10 outpost 18647 | -4/Upper Caves | Core integrity fell below 50% 18664 | -4/Upper Caves | Lost 9 parts (2p1n5u1w) 18785 | -4/Upper Caves | Spotted B-86 Titan 18890 | -4/Upper Caves | Lost 3 parts (2u1w) 19297 | -4/Upper Caves | Revealed the true nature of CR-A16's Pointy Stick 19300 | -4/Upper Caves | Destroyed B-86 Titan 19507 | -4/Upper Caves | Discovered new exit (range 6) 19558 | -4/Upper Caves | Entered Warlord 19558 | -4/Warlord | Accompanied by 1 ally 19605 | -4/Warlord | System corruption cleaned by Quarantine Array 19617 | -4/Warlord | Build established: Scavenger-Mutant 19934 | -4/Warlord | Met Warlord 19959 | -4/Warlord | Warlord's base attacked by MAIN.C 19960 | -4/Warlord | Found Prototype Processor 19960 | -4/Warlord | Identified Exp. Targeting Computer 19974 | -4/Warlord | Found Prototype Processor 19974 | -4/Warlord | Identified Exp. Armor Integrity Analyzer 19981 | -4/Warlord | Found Prototype Reactor 19981 | -4/Warlord | Identified Vortex Chain Reactor 19997 | -4/Warlord | Found Prototype Hackware 20166 | -4/Warlord | Warlord forces counterattacked 20255 | -4/Warlord | Discovered new exit (range 12) 20260 | -4/Warlord | Spotted Executioner 20260 | -4/Warlord | Spotted Striker 20260 | -4/Warlord | Destroyed Executioner 20264 | -4/Warlord | Destroyed Striker 20286 | -4/Warlord | Entered Proximity Caves 20286 | -3/Proximity Caves | Accompanied by 1 ally 20289 | -3/Proximity Caves | Destroyed 12 combat bots 20555 | -3/Proximity Caves | Build established: Scavenger-Gunner 20670 | -3/Proximity Caves | Attracted the attention of an 0b10 outpost 20696 | -3/Proximity Caves | Destroyed 7 combat bots 21319 | -3/Proximity Caves | Spotted B-86 Titan 21530 | -3/Proximity Caves | Destroyed B-86 Titan 21537 | -3/Proximity Caves | Attracted the attention of an 0b10 checkpoint 21952 | -3/Proximity Caves | Discovered exit to Research (range 4) 21962 | -3/Proximity Caves | Entered Research 21962 | -3/Research | Evolved 2 slots: Propulsion x2 22020 | -3/Research | Identified exit to Armory 22020 | -3/Research | Identified exit to Quarantine 22162 | -3/Research | Revision forces began assault on 0b10 22292 | -3/Research | Discovered new exit (range 8) 22466 | -3/Research | Destroyed 11 combat bots 22554 | -3/Research | Destroyed 17 combat bots 22662 | -3/Research | Research terminal network offline 22704 | -3/Research | Entered Quarantine 22901 | -3/Quarantine | Found Alien Artifact 22938 | -3/Quarantine | Found Alien Artifact 22941 | -3/Quarantine | Found Alien Artifact 22942 | -3/Quarantine | Identified Dimensional Node Initializer (x2) 22942 | -3/Quarantine | Initialized slip node 22959 | -3/Quarantine | Found Alien Artifact 22962 | -3/Quarantine | Found Alien Artifact 22962 | -3/Quarantine | Identified Hpw. Transdimensional Reconstructor (x2) 22962 | -3/Quarantine | Warped through subspace to slip node 23110 | -3/Quarantine | Found Alien Artifact 23133 | -3/Quarantine | Identified Phase Armor 23443 | -3/Quarantine | Discovered new exit (range 13) 23480 | -3/Quarantine | First assault squad dispatched 23497 | -3/Quarantine | Cryocooling Duct disabled 23512 | -3/Quarantine | Ambient heat levels rising (+20) 23512 | -3/Quarantine | Non-combat units ordered to evacuate 23522 | -3/Quarantine | Destroyed 10 combat bots 23567 | -3/Quarantine | Entered Research 23567 | -2/Research | Warlord forces began assault on 0b10 23567 | -2/Research | Evolved 2 slots: Power x1, Utility x1 23626 | -2/Research | Identified Ghost Barrier 23677 | -2/Research | Research machine network offline 23781 | -2/Research | Discovered new exit (range 16) 23805 | -2/Research | Identified exit to Access 23892 | -2/Research | Met up with Warlord 23965 | -2/Research | Build established: Hacker-Skirmisher 24127 | -2/Research | Spotted Striker 24128 | -2/Research | Spotted Striker 24141 | -2/Research | Destroyed Striker 24162 | -2/Research | Destroyed 12 combat bots 24174 | -2/Research | Discovered new exit (range 14) 24226 | -2/Research | Entered Testing 24337 | -2/Testing | Found Prototype Ballistic Gun 24337 | -2/Testing | Identified Hyp. Multirail 24643 | -2/Testing | Spotted Striker 24655 | -2/Testing | Destroyed Striker 24659 | -2/Testing | Spotted Alpha 7 24699 | -2/Testing | Destroyed Alpha 7 24704 | -2/Testing | Warped through subspace 24720 | -2/Testing | Destroyed 7 combat bots 24726 | -2/Testing | First assault squad dispatched 24864 | -2/Testing | Destroyed 7 combat bots 24937 | -2/Testing | Build established: Hacker-Gunner 24947 | -2/Testing | Found Prototype Launcher 24947 | -2/Testing | Identified Enh. Gamma Bomb Array 25116 | -2/Testing | Destroyed 10 combat bots 25170 | -2/Testing | Found Prototype Energy Cannon 25171 | -2/Testing | Identified Cld. Nova Cannon 25219 | -2/Testing | Identified Subatomic Replicator 25219 | -2/Testing | Used Subatomic Replicator to replicate Prototype Leg 25220 | -2/Testing | Found Prototype Leg 25220 | -2/Testing | Identified Myomer Exoskeleton 25415 | -2/Testing | Found Prototype Energy Gun 25415 | -2/Testing | Identified Hyp. EM Gauss Rifle 25442 | -2/Testing | Found Prototype Energy Cannon 25442 | -2/Testing | Identified Imp. Potential Cannon 25445 | -2/Testing | Found Prototype Energy Cannon 25445 | -2/Testing | Identified Potential Cannon 25502 | -2/Testing | Spotted Alpha 7 25524 | -2/Testing | Core integrity fell below 50% 25578 | -2/Testing | High security lockdown imminent 25582 | -2/Testing | Scanned by Researcher 25599 | -2/Testing | Destroyed Alpha 7 25626 | -2/Testing | Lost 10 parts (3p1n4u2w) 25658 | -2/Testing | High security lockdown engaged 25696 | -2/Testing | Spotted Executioner 25696 | -2/Testing | Spotted Striker 25696 | -2/Testing | Spotted Executioner 25712 | -2/Testing | Destroyed Striker 25733 | -2/Testing | Destroyed 11 combat bots 25751 | -2/Testing | Core integrity fell below 20% 25751 | -2/Testing | Destroyed Executioner 25769 | -2/Testing | Lost 4 parts (1u3w) 25791 | -2/Testing | Spotted Striker 25795 | -2/Testing | Spotted Investigator 25802 | -2/Testing | Destroyed Investigator 25822 | -2/Testing | Destroyed by Striker with Plasma Lance Last Messages --------------- 25812_ Penetrated by Slug. 25812_ Vortex Chain Reactor destroyed. 25812_ Exp. Biometal Heavy Treads destroyed. 25813_ G-73 Enforcer stasis bubble strength at 177. 25814_ G-73 Enforcer stasis bubble strength at 154. 25815_ Cld. Nova Cannon destroyed. 25815_ P-80 Master resets Striker, system corruption cleaned. 25815_ B-74 Champion destroyed. 25815_ Destroyed Lgt. Quantum Reactor. 25815_ P-80 Master destroyed. 25815_ G-73 Enforcer stasis bubble strength at 131. 25816_ G-73 Enforcer stasis bubble strength at 108. 25817_ Adv. Corruption Screen intercepted 1% system corruption. 25817_ G-73 Enforcer stasis bubble strength at 85. 25817_ M-36 Artificer fits Backup Laser VII on L-61 Swordsman. 25818_ L-61 Swordsman destroyed. 25818_ G-73 Enforcer destroyed. 25820_ P-80 Master resets L-61 Swordsman, system corruption cleaned. 25821_ Adv. Heat Sink destroyed. 25822_ Striker heat short circuits Prototype Device. Map ----- +----------------------------------------------------+ | ?????????????????????????????????????????????????? | | ?????????????????????????????????????????????????? | | ????????????????####+##??????????????????????????? | | ????????????????# ???????????????????????????? | | ????????????????# ???????????????????????????? | | #??????????????# ???????????????????????????? | | #??????????????# ???????????????????????????? | | #???????????#### #???????????????????????????? | | #???????????# #???????????????????????????? | | ?????????????? #???????????????????????????? | | ??????????????? #???????????????????????????? | | ????????????????# #???????????????????????????? | | +???????????????# ######??????????????????????? | | #???????????????# # """###?????###????????????? | | #???????????????# # !"]#???###"#????????????? | | ????????????????# # ] =#???#/ /##???????????? | | ?##????????????## # ]"##???#![[%#?????####??? | | #?????????????## " "#??#%#%![#######T ###? | | #?????????????# *% # """!"#??####=[= %[ + #? | | ?#??????####### % #####?????###== | + #? | | #?#????# g E ##????????##= ## #? | | ???????# ##### ! p ;##????????# ## ##? | | + ????????# = %! g ; #????##??# ## #?? | | ####??????# |%%= % ##??? #?##" ## #?? | | ##?#??????# ]%% ####"##"" " ## #?? | | ####??????# @ ## " ## #?? | | #??#??????# K ## ## #?? | | #??#??????# """ ; """"""" ## #?? | | ##?#??????# """" "[ = = ;; """"""" ##%%%#?? | | #?????????# " % m [ """"""" ######?? | | ##????????# % ;;#;l #??????? | | #?????????# # = ; #??????? | | ###???????###############;## # ########??????? | | ###?????????????????????# ##### #?????????????? | | ???????????##################?# ;#????????????? | | ?#?????????# !!#?# # #???????????? | | ?#?????????# """"""" !!#?# ## #??????????? | | ?#??####???# """"""" #?# ### #####?????? | | #?#"#= #???# """"""" ### ## # #?????? | | ??##""="##?# # # "# # ##????? | | ###" "#?# """"""" # ###### ####???? | | #?#"" ""#?? """"" # # #???? | | ###" "#??? """" ## # #???? | | ??# #?# # # #???? | | #######+######+#+##### ### ## # " #???? | | % % % + "" #???? | | %[ = # "" #???? | | """" / # #???? | | ""T" = # [ #???? | | #################### ###########???? | +----------------------------------------------------+ Best States ------------- Heat Dissipation 109 Coolant Potential 80 Energy Generation 69 Energy Capacity 1850 Matter Stores 547 Matter Capacity 800 Sight Range 23 Robot Scan Range 16 Terrain Scan Range 18 Terrain Scan Density 210 Jamming Range 16 Additional Mass Support 9 Corruption Block 17 Armor Coverage 600 Resistance: KI 45 Resistance: TH 50 Resistance: EX 20 Resistance: EM 20 Resistance: I 20 Resistance: S 20 Resistance: P 20 Phase Shifting 10 Evasion (%) 55 Targeting Accuracy 20 Target Analysis 8 Armor Integrity Analysis 50 Recoil Reduction 6 Energy Filtering 30 Particle Charging 25 Offensive Hacking 20 Defensive Hacking 20 Item Schematics ----------------- Hcp. Storage Unit | -10/Materials | Hacked Huge Storage Unit | -10/Materials | Hacked Lrg. Storage Unit | -10/Materials | Hacked Lgt. Armor Plating | -8/Materials | Scanalyzed Signal Interpreter | -8/Materials | Scanalyzed Flail | -8/Materials | Scanalyzed Imp. Recalibrator | -6/Zion | Archive Imp. Particle Charger | -6/Zion | Archive Thermic Laser | -6/Zion | Archive Mak. Ablative Armor | -6/Zion | Archive Hvy. Phase Cannon | -6/Zion | Archive Imp. Hacking Suite | -6/Zion | Archive Centrium Wheel | -6/Zion | Archive Adv. Terrain Scanner | -6/Zion | Archive Point Defense System | -6/Zion | Archive Impulse Thruster | -6/Zion | Archive Lrn. Missile Launcher | -6/Zion | Archive Imp. Remote Datajack | -6/Zion | Archive Imp. Focal Shield | -6/Zion | Archive Lgt. Fission Core | -6/Zion | Archive Centrium Greatsword | -2/Testing | Archive Hdn. Centrium Leg | -2/Testing | Archive Adv. Thermal Defense Suite | -2/Testing | Archive Robot Schematics ------------------ R-10 Processor | -6/Zion | Archive G-50 Soldier | -6/Zion | Archive A-15 Conveyor | -6/Zion | Archive Y-72 Warden | -6/Zion | Archive Fabricated ------------ Huge Storage Unit | x1 | -7/Factory Hcp. Storage Unit | x1 | -7/Factory Centrium Wheel | x2 | -5/Factory Alien Tech Used ----------------- Dimensional Node Initializer High-powered Transdimensional Reconstructor Phase Armor Subatomic Replicator Achievements -------------- None Challenges ------------ None Game ------ Seed EnergyModifiedExoskeleton Manual? 0 Play Time 04:05:02 Cumulative 252.6 hours Start 2022.04.20 @ 11:21:17 End 2022.04.21 @ 14:30:00 Sessions 3 Manual Loads 0 Difficulty Adventurer Special Mode None Game No. 192 Rogue 167 Adventurer 7 Explorer 18 Win Type - Total 31 Types 13/1/3/9/1/0/1/1/2 Lore% 74 Gallery% 84 Achievement% 72 Wizard Run 0 Options --------- ASCII 0 Keyboard 0 Movement Mouse Keybinds 0 Fullscreen 1 Font 18/SmallcapsGlow Map View 76x50 Tactical HUD 1 Map Filters NONE Filters NONE Steam 1 RUN: c22965df-8699-425d-856d-753996b0ca27